{"text_format":"1","workbook":"xlsx","n_sheets":3,"sheets":["Бланк Методички","Обработка результатов","Печать"],"not_rendered":{"charts":0,"images":1,"macros":1,"external_links":0,"defined_names":0,"comments":0,"pivot_tables":0},"unopened":[],"bounds":{"document_bytes":16777216,"sheet_cells":100000,"rows_first":2000,"rows_last":500,"rows_between":2000,"halvings":0,"cell_chars":16384,"cell_head_chars":4096},"cells_cut":0,"cells_raw":0,"read":"whole","date_system":"1900"}

{"sheet":"Бланк Методички","index":0,"n_rows":57,"n_cols":34,"rows_kept":57,"cut":false,"hidden":false,"merged":[[56,1,56,13],[51,1,51,13],[52,1,52,13],[53,1,53,13],[54,1,54,13],[55,1,55,13],[46,1,46,13],[47,1,47,13],[48,1,48,13],[49,1,49,13],[50,1,50,13],[38,1,38,13],[39,1,39,13],[40,1,40,13],[41,1,41,13],[42,1,42,13],[9,1,9,13],[10,1,10,13],[11,1,11,13],[12,1,12,13],[13,1,13,13],[14,1,14,13],[15,1,15,13],[16,1,16,13],[17,1,17,13],[18,1,18,13],[30,1,30,13],[31,1,31,13],[32,1,32,13],[33,1,33,13],[19,1,19,13],[20,1,20,13],[21,1,21,13],[22,1,22,13],[23,1,23,13],[24,1,24,13],[25,1,25,13],[26,1,26,13],[27,1,27,13],[28,1,28,13],[44,1,44,13],[45,1,45,13],[4,0,7,14],[2,15,2,18],[1,10,1,11],[1,12,1,14],[1,0,1,2],[1,3,1,8],[2,0,2,2],[2,3,2,8],[34,1,34,13],[35,1,35,13],[36,1,36,13],[37,1,37,13],[43,1,43,13],[29,1,29,13]]}
[null,null,null,null,null,null,null,null,null,null,null,null,null,null,null,null,null,null,null,null,null,null,null,null,null,null,null,null,null,null,null,null,10,"5 А"]
["Фамилия, имя",null,null,null,null,null,null,null,null,null,"Класс",null,null,null,null,null,null,null,null,null,null,null,null,null,null,null,null,null,null,null,null,null,11,"5 Б"]
["Возраст",null,null,null,null,null,null,null,null,null,null,null,null,null,null,null,null,null,null,null,null,null,null,null,null,null,null,null,null,null,null,null,12,"5 В"]
[null,null,null,null,null,null,null,null,null,null,null,null,null,null,null,null,null,null,null,null,null,null,null,null,null,null,null,null,null,null,null,null,13]
["Прочитайте предлагаемые утверждения\nЕсли согласны с высказыванием, в бланке поставьте «+», если нет «–»",null,null,null,null,null,null,null,null,null,null,null,null,null,null,null,null,null,null,null,null,null,null,null,null,null,null,null,null,null,null,"Мальчик",14]
[null,null,null,null,null,null,null,null,null,null,null,null,null,null,null,null,null,null,null,null,null,null,null,null,null,null,null,null,null,null,null,"Девочка",15]
[null,null,null,null,null,null,null,null,null,null,null,null,null,null,null,null,null,null,null,null,null,null,null,null,null,null,null,null,null,null,null,null,16]
[null,null,null,null,null,null,null,null,null,null,null,null,null,null,null,null,null,null,null,null,null,null,null,"+"]
[null,null,null,null,null,null,null,null,null,null,null,null,null,null,null,null,null,null,null,null,null,null,null,"-"]
[1,"Люблю наблюдать за облаками и звездами."]
[2,"Часто напеваю себе потихоньку."]
[3,"Не признаю моду, которая неудобна."]
[4,"Люблю ходить в сауну."]
[5,"В автомашине цвет для меня имеет значение."]
[6,"Узнаю по шагам, кто вошел в помещение."]
[7,"Меня развлекает подражание диалектам."]
[8,"Внешнему виду придаю серьезное значение."]
[9,"Мне нравится принимать массаж."]
[10,"Когда есть время, люблю наблюдать за людьми."]
[11,"Плохо себя чувствую, когда не наслаждаюсь движением."]
[12,"Видя одежду в витрине, знаю, что мне будет хорошо в ней."]
[13,"Когда услышу старую мелодию, ко мне возвращается прошлое."]
[14,"Люблю читать во время еды."]
[15,"Люблю поговорить по телефону."]
[16,"У меня есть склонность к полноте."]
[17,"Предпочитаю слушать рассказ, который кто-то читает, чем читать самому."]
[18,"После плохого дня мой организм в напряжении."]
[19,"Охотно и много фотографирую."]
[20,"Долго помню, что мне сказали приятели или знакомые."]
[21,"Легко могу отдать деньги за цветы, потому что они украшают жизнь."]
[22,"Вечером люблю принять горячую ванну."]
[23,"Стараюсь записывать свои личные дела."]
[24,"Часто разговариваю с собой."]
[25,"После длительной езды на машине долго прихожу в себя."]
[26,"Тембр голоса многое мне говорит о человеке."]
[27,"Придаю значение манере одеваться, свойственной другим."]
[28,"Люблю потягиваться, расправлять конечности, разминаться."]
[29,"Слишком твердая или слишком мягкая постель для меня мука."]
[30,"Мне нелегко найти удобную обувь."]
[31,"Люблю смотреть теле- и видеофильмы."]
[32,"Даже спустя годы могу узнать лица, которые когда-либо видел."]
[33," Люблю ходить под дождем, когда капли стучат по зонтику."]
[34," Люблю слушать, когда говорят."]
[35,"Люблю заниматься подвижным спортом или выполнять какие-либо двигательные упражнения, иногда и потанцевать."]
[36,"Когда близко тикает будильник, не могу уснуть."]
[37,"У меня неплохая стереоаппаратура."]
[38,"Когда слушаю музыку, отбиваю такт ногой."]
[39,"На отдыхе не люблю осматривать памятники архитектуры."]
[40,"Не выношу беспорядок."]
[41,"Не люблю синтетических тканей."]
[42,"Считаю, что атмосфера в помещении зависит от освещения. "]
[43,"Часто хожу на концерты. "]
[44,"Пожатие руки много говорит мне о данной личности."]
[45,"Охотно посещаю галереи и выставки. "]
[46,"Серьезная дискуссия – это интересно."]
[47,"Через прикосновение можно сказать значительно больше, чем словами. "]
[48,"В шуме не могу сосредоточиться."]

{"sheet":"Обработка результатов","index":1,"n_rows":13,"n_cols":49,"rows_kept":13,"cut":false,"hidden":false,"merged":[[11,18,11,21],[12,18,12,21],[1,1,1,16],[9,1,9,16],[8,0,8,21],[9,18,9,21],[10,18,10,21]]}
[]
["Шкала","Пункты, номер"]
["Визуальный канал восприятия",1,5,8,10,12,14,19,21,23,27,31,32,39,40,42,45]
["Аудиальный канал восприятия",2,6,7,13,15,17,20,24,26,33,34,36,37,43,46,48]
["Кинестетический канал восприятия",3,4,9,11,16,18,22,25,28,29,30,35,38,41,44,47]
[]
[]
[]
["Результаты"]
["Шкала","Ответы",null,null,null,null,null,null,null,null,null,null,null,null,null,null,null,"Итого","Уровень",null,null,null,null,null,null,null,null,null,null,null,null,null,null,null,null,null,null,null,null,null,null,null,null,null,null,{"$f":"'Бланк Методички'!O23","v":0},{"$f":"'Бланк Методички'!O39","v":0},{"$f":"'Бланк Методички'!O47","v":0}]
["Визуальный канал восприятия",{"$f":"'Бланк Методички'!O10","v":0},{"$f":"'Бланк Методички'!O14","v":0},{"$f":"'Бланк Методички'!O17","v":0},{"$f":"'Бланк Методички'!O19","v":0},{"$f":"'Бланк Методички'!O21","v":0},{"$f":"'Бланк Методички'!O23","v":0},{"$f":"'Бланк Методички'!O28","v":0},{"$f":"'Бланк Методички'!O30","v":0},{"$f":"'Бланк Методички'!O32","v":0},{"$f":"'Бланк Методички'!O36","v":0},{"$f":"'Бланк Методички'!O40","v":0},{"$f":"'Бланк Методички'!O41","v":0},{"$f":"'Бланк Методички'!O48","v":0},{"$f":"'Бланк Методички'!O49","v":0},{"$f":"'Бланк Методички'!O51","v":0},{"$f":"'Бланк Методички'!O54","v":0},{"$f":"COUNTIF(B11:Q11,\"+\")","v":0},{"$f":"IF(AND(R11>=0,R11<=7),\"Низкий\",IF(AND(R11>=8,R11<=12),\"Средний\",IF(AND(R11>=9,R11<=16),\"Высокий\",)))","v":"Низкий"},null,null,null,null,null,null,null,null,null,null,null,null,null,null,null,null,null,null,null,null,null,null,null,null,null,null,{"$f":"'Бланк Методички'!O13","v":0},{"$f":"'Бланк Методички'!O29","v":0},{"$f":"'Бланк Методички'!O41","v":0}]
["Аудиальный канал восприятия",{"$f":"'Бланк Методички'!O12","v":0},{"$f":"'Бланк Методички'!O15","v":0},{"$f":"'Бланк Методички'!O16","v":0},{"$f":"'Бланк Методички'!O22","v":0},{"$f":"'Бланк Методички'!O24","v":0},{"$f":"'Бланк Методички'!O26","v":0},{"$f":"'Бланк Методички'!O29","v":0},{"$f":"'Бланк Методички'!O33","v":0},{"$f":"'Бланк Методички'!O35","v":0},{"$f":"'Бланк Методички'!O42","v":0},{"$f":"'Бланк Методички'!O43","v":0},{"$f":"'Бланк Методички'!O45","v":0},{"$f":"'Бланк Методички'!O46","v":0},{"$f":"'Бланк Методички'!O52","v":0},{"$f":"'Бланк Методички'!O55","v":0},{"$f":"'Бланк Методички'!O57","v":0},{"$f":"COUNTIF(B12:Q12,\"+\")","v":0},{"$f":"IF(AND(R12>=0,R12<=7),\"Низкий\",IF(AND(R12>=8,R12<=12),\"Средний\",IF(AND(R12>=9,R12<=16),\"Высокий\",)))","v":"Низкий"},null,null,null,null,null,null,null,null,null,null,null,null,null,null,null,null,null,null,null,null,null,null,null,null,null,null,{"$f":"'Бланк Методички'!O10","v":0},{"$f":"'Бланк Методички'!O18","v":0},{"$f":"'Бланк Методички'!O34","v":0},{"$f":"'Бланк Методички'!O42","v":0}]
["Кинестетический канал восприятия",{"$f":"'Бланк Методички'!O12","v":0},{"$f":"'Бланк Методички'!O13","v":0},{"$f":"'Бланк Методички'!O18","v":0},{"$f":"'Бланк Методички'!O20","v":0},{"$f":"'Бланк Методички'!O25","v":0},{"$f":"'Бланк Методички'!O27","v":0},{"$f":"'Бланк Методички'!O31","v":0},{"$f":"'Бланк Методички'!O34","v":0},{"$f":"'Бланк Методички'!O37","v":0},{"$f":"'Бланк Методички'!O38","v":0},{"$f":"'Бланк Методички'!O39","v":0},{"$f":"'Бланк Методички'!O44","v":0},{"$f":"'Бланк Методички'!O47","v":0},{"$f":"'Бланк Методички'!O50","v":0},{"$f":"'Бланк Методички'!O53","v":0},{"$f":"'Бланк Методички'!O56","v":0},0,{"$f":"IF(AND(R13>=0,R13<=7),\"Низкий\",IF(AND(R13>=8,R13<=12),\"Средний\",IF(AND(R13>=9,R13<=16),\"Высокий\",)))","v":"Низкий"}]

{"sheet":"Печать","index":2,"n_rows":39,"n_cols":8,"rows_kept":39,"cut":false,"hidden":false,"merged":[[38,0,39,8],[37,0,37,8],[5,0,5,4],[6,0,6,4],[7,0,7,4],[8,0,8,4],[9,0,9,8],[6,6,6,8],[7,6,7,8],[8,6,8,8],[5,6,5,8],[14,0,14,8],[15,0,15,8],[16,0,16,8],[12,0,12,8],[26,0,26,8],[0,0,0,8],[2,7,2,8],[3,7,3,8],[2,1,2,5],[3,1,3,5],[10,0,10,8],[21,0,21,8],[11,0,11,8],[30,0,30,8],[36,0,36,8],[31,0,31,8],[32,0,32,8],[33,0,33,8],[34,0,34,8],[35,0,35,8],[27,0,27,8],[28,0,28,8],[29,0,29,8],[22,0,22,8],[23,0,23,8],[24,0,24,8],[25,0,25,8],[13,0,13,8],[17,0,17,8],[18,0,18,8],[19,0,19,8],[20,0,20,8]]}
["Методика \"Ведущий канал восприятия\""]
[]
["ФИО",{"$f":"PROPER('Бланк Методички'!D2)","v":""},null,null,null,null,"Класс",{"$f":"'Бланк Методички'!M2","v":0}]
["Возраст",{"$f":"CONCATENATE('Бланк Методички'!D3, \" лет\")","v":" лет"},null,null,null,null,"Дата",{"$f":"TODAY()","v":"2018-02-06"}]
[]
["Шкала",null,null,null,null,"Баллы","Уровень"]
["Визуальный канал восприятия",null,null,null,null,{"$f":"CONCATENATE('Обработка результатов'!R11,\"/16\")","v":"0/16"},{"$f":"'Обработка результатов'!S11","v":"Низкий"}]
["Аудиальный канал восприятия",null,null,null,null,{"$f":"CONCATENATE('Обработка результатов'!R12,\"/16\")","v":"0/16"},{"$f":"'Обработка результатов'!S12","v":"Низкий"}]
["Кинестетический канал восприятия",null,null,null,null,{"$f":"CONCATENATE('Обработка результатов'!R13,\"/16\")","v":"0/16"},{"$f":"'Обработка результатов'!S13","v":"Низкий"}]
[]
[]
[]
[]
[]
[]
[]
[]
[]
[]
[]
[]
[]
[]
[]
[]
[]
[]
[]
[]
[]
[]
[]
[]
[]
[]
[]
[]
[]
["http://eschool.by/psychology/"]